fUST/lending_fUST_20250916
["ID","MTS","AMOUNT","RATE_DAILY","PERIOD"]
[385742461,1757999452348,-529.77,0.00024109,3]
[385742462,1757999452358,-480.0,0.00024109,3]
[385742463,1757999452368,-3859.97,0.00024109,3]
[385742464,1757999452378,-1411.58,0.00024109,3]
[385742465,1757999452389,-480.0,0.00024109,3]
[385742466,1757999452399,-480.0,0.00024109,3]
[385742467,1757999452409,-480.0,0.00024109,3]
[385742468,1757999452422,-480.0,0.00024109,3]
[385742469,1757999452433,-480.0,0.00024109,3]
[385742470,1757999452444,-940.86,0.00024109,3]
[385742471,1757999452455,-480.0,0.00024109,3]
[385742472,1757999452467,-837.88,0.00024109,3]
[385742473,1757999452477,-168.0,0.00024242,2]
[385742474,1757999452487,-174.217381,0.00024254,7]
[385742475,1757999452498,-174.217381,0.00024254,7]
[385742476,1757999452508,-174.217381,0.00024254,7]
[385742477,1757999452518,-174.217381,0.00024254,7]
[385742478,1757999452528,-168.0,0.0002426,2]
[385742479,1757999452605,-3500.0,0.0002426,2]
[385742480,1757999452617,-560.0,0.00024302,2]
[385742481,1757999452627,-168.0,0.00024348,2]
[385742482,1757999452638,-480.0,0.00024383,3]
[385742483,1757999452648,-502.74,0.00024383,3]
[385742484,1757999452658,-338.13009797,0.00024383,3]
[385742485,1757999452669,-487.15,0.00024383,3]
[385742486,1757999452679,-529.77,0.00024383,3]
[385742487,1757999452689,-480.0,0.00024383,3]
[385742488,1757999452699,-3859.97,0.00024383,3]
[385742489,1757999452708,-1411.58,0.00024383,3]
[385742490,1757999452718,-205.37212271,0.00024383,3]
[385742491,1757999452727,-480.0,0.00024383,3]
[385742492,1757999452737,-480.0,0.00024383,3]
[385742493,1757999452746,-480.0,0.00024383,3]
[385742494,1757999452756,-589.68,0.00024383,3]
[385742495,1757999452767,-940.86,0.00024383,3]
[385742496,1757999452777,-480.0,0.00024383,3]
[385742497,1757999452787,-837.88,0.00024383,3]
[385742498,1757999452797,-168.0,0.00024436,2]
[385742499,1757999452807,-168.0,0.00024498,2]
[385742500,1757999452817,-151.0,0.000245,10]
[385742501,1757999452826,-168.0,0.00024504,2]
[385742502,1757999452836,-168.0,0.00024524,2]
[385742503,1757999452845,-168.0,0.00024604,2]
[385742504,1757999452857,-587.0,0.00024618,2]
[385742505,1757999452868,-292.92377653,0.00024657,2]
[385742506,1757999452877,-300.58359745,0.00024657,2]
[385742507,1757999452888,-480.0,0.00024657,3]
[385742508,1757999452897,-502.74,0.00024657,3]
[385742509,1757999452908,-487.15,0.00024657,3]
[385742510,1757999452918,-529.77,0.00024657,3]
[385742511,1757999452928,-439.60138047,0.00024657,3]
[385742512,1757999452939,-3859.97,0.00024657,3]
[385742513,1757999452949,-1411.58,0.00024657,3]
[385742514,1757999452960,-480.0,0.00024657,3]
[385742515,1757999452970,-480.0,0.00024657,3]
[385742516,1757999452980,-480.0,0.00024657,3]
[385742517,1757999452992,-940.86,0.00024657,3]
[385742518,1757999453003,-153.78010323,0.00024657,3]
[385742519,1757999453013,-837.88,0.00024657,3]
[385742520,1757999453023,-200.0,0.00024658,15]
[385742521,1757999453032,-168.0,0.00024672,2]
[385742522,1757999453042,-6667.26,0.000247,7]
[385742523,1757999453051,-1826.49,0.000247,7]
[385742524,1757999453061,-920.47481441,0.00024733,2]
[385742525,1757999453070,-168.0,0.00024734,2]
[385742526,1757999453079,-168.0,0.00024744,2]
[385742527,1757999453088,-2000.0,0.00024755,2]
[385742528,1757999453098,-150.0,0.000248,2]
[385742529,1757999453107,-4000.0,0.00024808,2]
[385742530,1757999453117,-660.0,0.0002485,2]
[385742531,1757999453128,-2351.0,0.00024853,2]
[385742532,1757999453137,-151.0,0.00024854,7]
[385742533,1757999453148,-151.0,0.00024854,7]
[385742534,1757999453158,-500.76270565,0.00024873,2]
[385742535,1757999453168,-500.0,0.00024873,2]
[385742536,1757999453178,-981.377,0.00024893,2]
[385742537,1757999453189,-2164.097,0.00024893,2]
[385742538,1757999453199,-636.966,0.00024893,2]
[385742539,1757999453209,-442.269,0.00024893,2]
[385742540,1757999453221,-412.92,0.00024893,2]
[385742541,1757999453232,-3004.0,0.00024893,2]
[385742542,1757999453243,-154.738351,0.000249,7]
[385742543,1757999453253,-151.0,0.000249,7]
[385742544,1757999453263,-151.0,0.000249,7]
[385742545,1757999453273,-151.0,0.000249,7]
[385742546,1757999453283,-151.0,0.000249,7]
[385742547,1757999453293,-151.0,0.000249,7]
[385742548,1757999453303,-151.0,0.000249,7]
[385742549,1757999453313,-151.0,0.000249,7]
[385742550,1757999453323,-151.0,0.000249,7]
[385742551,1757999453332,-151.0,0.000249,7]
[385742552,1757999453342,-151.0,0.000249,7]
[385742553,1757999453352,-151.0,0.000249,7]
[385742554,1757999453361,-151.0,0.000249,7]
[385742555,1757999453372,-151.0,0.000249,7]
[385742556,1757999453382,-151.0,0.000249,7]
[385742557,1757999453392,-191.600975,0.000249,7]
[385742558,1757999453401,-191.600975,0.000249,7]
[385742559,1757999453411,-191.600975,0.000249,7]
[385742560,1757999453421,-191.600979,0.000249,7]
[385742561,1757999453431,-174.217381,0.000249,7]
[385742562,1757999453440,-174.217381,0.000249,7]
[385742563,1757999453450,-174.217381,0.000249,7]
[385742564,1757999453460,-174.217377,0.000249,7]
[385742565,1757999453470,-368725.857567,0.000249,2]
[385742566,1757999453480,-151.0,0.000249,7]
[385742567,1757999453490,-151.0,0.000249,7]
[385742568,1757999453499,-151.0,0.000249,7]
[385742569,1757999453510,-449.208965,0.000249,7]
[385742570,1757999453521,-449.208965,0.000249,7]
[385742571,1757999453531,-449.208965,0.000249,7]
[385742572,1757999453540,-449.208961,0.000249,7]
[385742573,1757999453550,-480.0,0.00024931,3]
[385742574,1757999453561,-502.74,0.00024931,3]
[385742575,1757999453573,-487.15,0.00024931,3]
[385742576,1757999453583,-529.77,0.00024931,3]
[385742577,1757999453593,-3859.97,0.00024931,3]
[385742578,1757999453603,-1411.58,0.00024931,3]
[385742579,1757999453612,-480.0,0.00024931,3]
[385742580,1757999453622,-480.0,0.00024931,3]
[385742581,1757999453632,-480.0,0.00024931,3]
[385742582,1757999453643,-940.86,0.00024931,3]
[385742583,1757999453653,-837.88,0.00024931,3]
[385742584,1757999453663,-497.72056922,0.00025,2]
[385742585,1757999453673,-44018.0,0.00025,4]
[385742586,1757999453683,-154.0,0.00025,2]
[385742587,1757999453692,-168.0,0.00025068,2]
[385742588,1757999453702,-179.73040439,0.000251,2]
[385742589,1757999453711,-168.0,0.00025196,2]
[385742590,1757999453721,-480.0,0.00025205,3]
[385742591,1757999453731,-502.74,0.00025205,3]
[385742592,1757999453742,-487.15,0.00025205,3]
[385742593,1757999453751,-529.77,0.00025205,3]
[385742594,1757999453761,-3859.97,0.00025205,3]
[385742595,1757999453771,-1411.58,0.00025205,3]
[385742596,1757999453781,-480.0,0.00025205,3]
[385742597,1757999453791,-480.0,0.00025205,3]
[385742598,1757999453801,-480.0,0.00025205,3]
[385742599,1757999453811,-940.86,0.00025205,3]
[385742600,1757999453822,-837.88,0.00025205,3]
[385742601,1757999453832,-168.0,0.00025303,2]
[385742602,1757999453842,-4500.0,0.00025356,2]
[385742603,1757999453853,-760.0,0.00025398,2]
[385742604,1757999453863,-1021.50871399,0.00025421,2]
[385742605,1757999453873,-173.75285733,0.00025479,3]
[385742606,1757999453883,-502.74,0.00025479,3]
[385742607,1757999453893,-487.15,0.00025479,3]
[385742608,1757999453904,-529.77,0.00025479,3]
[385742609,1757999453914,-3859.97,0.00025479,3]
[385742610,1757999453924,-1411.58,0.00025479,3]
[385742611,1757999453934,-480.0,0.00025479,3]
[385742612,1757999453943,-167.82,0.00025479,3]
[385742613,1757999453953,-480.0,0.00025479,3]
[385742614,1757999453964,-940.86,0.00025479,3]
[385742615,1757999453974,-837.88,0.00025479,3]
[385742616,1757999453984,-813.69,0.000255,7]
[385742617,1757999453993,-168.0,0.0002552,2]
[385742618,1757999454003,-502.74,0.00025753,3]
[385742619,1757999454014,-487.15,0.00025753,3]
[385742620,1757999454024,-529.77,0.00025753,3]
[385742621,1757999454037,-3859.97,0.00025753,3]
[385742622,1757999454048,-1411.58,0.00025753,3]
[385742623,1757999454058,-480.0,0.00025753,3]
[385742624,1757999454068,-480.0,0.00025753,3]
[385742625,1757999454078,-940.86,0.00025753,3]
[385742626,1757999454087,-837.88,0.00025753,3]
[385742627,1757999454163,-2000.0,0.00025851,2]
[385742628,1757999454173,-331.55002826,0.00025862,2]
[385742629,1757999454182,-5000.0,0.00025904,2]
[385742630,1757999454192,-168.0,0.00025912,2]
[385742631,1757999454203,-860.0,0.00025945,2]
[385742632,1757999454213,-5014.2064733,0.00025998,2]
[385742633,1757999454223,-151.0,0.00025998,7]
[385742634,1757999454232,-151.0,0.00026008,7]
[385742635,1757999454242,-152.728998,0.00026008,7]
[385742636,1757999454252,-502.74,0.00026027,3]
[385742637,1757999454262,-487.15,0.00026027,3]
[385742638,1757999454271,-529.77,0.00026027,3]
[385742639,1757999454281,-3859.97,0.00026027,3]
[385742640,1757999454291,-1411.58,0.00026027,3]
[385742641,1757999454301,-480.0,0.00026027,3]
[385742642,1757999454310,-480.0,0.00026027,3]
[385742643,1757999454320,-940.86,0.00026027,3]
[385742644,1757999454331,-1218.96,0.00026027,4]
[385742645,1757999454340,-837.88,0.00026027,3]
[385742646,1757999454350,-152.770812,0.00026074,3]
[385742647,1757999454359,-920.47481441,0.00026078,2]
[385742648,1757999454368,-69310.3273262,0.00026297,2]
[385742649,1757999454378,-1826.49,0.000263,7]
[385742650,1757999454388,-1460.6878,0.000263,2]
[385742651,1757999454399,-502.74,0.00026301,3]
[385742652,1757999454408,-487.15,0.00026301,3]
[385742653,1757999454421,-529.77,0.00026301,3]
[385742654,1757999454430,-3859.97,0.00026301,3]
[385742655,1757999454440,-1411.58,0.00026301,3]
[385742656,1757999454451,-480.0,0.00026301,3]
[385742657,1757999454460,-480.0,0.00026301,3]
[385742658,1757999454471,-940.86,0.00026301,3]
[385742659,1757999454480,-837.88,0.00026301,3]
[385742660,1757999454491,-152.770812,0.00026406,7]
[385742661,1757999454503,-2500.27064649,0.00026452,2]
[385742662,1757999454514,-960.0,0.00026493,2]
[385742663,1757999454525,-152.770812,0.00026539,2]
[385742664,1757999454536,-502.74,0.00026575,3]
[385742665,1757999454546,-487.15,0.00026575,3]
[385742666,1757999454557,-529.77,0.00026575,3]
[385742667,1757999454567,-3859.97,0.00026575,3]
[385742668,1757999454575,-1411.58,0.00026575,3]
[385742669,1757999454584,-364.59259315,0.00026575,3]
[385742670,1757999454594,-480.0,0.00026575,3]
[385742671,1757999454604,-940.86,0.00026575,3]
[385742672,1757999454613,-837.88,0.00026575,3]
[385742673,1757999454624,-155.81930119,0.00026662,2]
[385742674,1757999454634,-152.770812,0.00026711,3]
[385742675,1757999454643,-152.770812,0.00026742,10]
[385742676,1757999454656,-823.0,0.00026785,2]
[385742677,1757999454666,-6667.26,0.000268,7]
[385742678,1757999454676,-1000.0,0.000268,2]
[385742679,1757999454685,-160.0,0.000268,7]
[385742680,1757999454695,-152.770812,0.00026819,7]
[385742681,1757999454705,-328.0,0.00026849,3]
[385742682,1757999454715,-166.0,0.00026849,3]
[385742683,1757999454725,-166.0,0.00026849,3]
[385742684,1757999454734,-328.0,0.00026849,3]
[385742685,1757999454743,-166.0,0.00026849,3]
[385742686,1757999454752,-166.0,0.00026849,3]
[385742687,1757999454762,-166.0,0.00026849,3]
[385742688,1757999454771,-166.0,0.00026849,3]
[385742689,1757999454780,-166.0,0.00026849,3]
[385742690,1757999454790,-328.0,0.00026849,3]
[385742691,1757999454799,-172.0,0.00026849,3]
[385742692,1757999454808,-328.0,0.00026849,3]
[385742693,1757999454817,-328.0,0.00026849,3]
[385742694,1757999454827,-328.0,0.00026849,3]
[385742695,1757999454836,-328.0,0.00026849,3]
[385742696,1757999454846,-328.0,0.00026849,3]
[385742697,1757999454855,-328.0,0.00026849,3]
[385742698,1757999454864,-328.0,0.00026849,3]
[385742699,1757999454873,-328.0,0.00026849,3]
[385742700,1757999454882,-328.0,0.00026849,3]
[385742701,1757999454891,-328.0,0.00026849,3]
[385742702,1757999454901,-328.0,0.00026849,3]
[385742703,1757999454910,-328.0,0.00026849,3]
[385742704,1757999454920,-328.0,0.00026849,3]
[385742705,1757999454931,-328.0,0.00026849,3]
[385742706,1757999454942,-328.0,0.00026849,3]
[385742707,1757999454952,-328.0,0.00026849,3]
[385742708,1757999454961,-328.0,0.00026849,3]
[385742709,1757999454971,-328.0,0.00026849,3]
[385742710,1757999454981,-328.0,0.00026849,3]
[385742711,1757999454990,-328.0,0.00026849,3]
[385742712,1757999454999,-328.0,0.00026849,3]
[385742713,1757999455008,-328.0,0.00026849,3]
[385742714,1757999455018,-328.0,0.00026849,3]
[385742715,1757999455027,-328.0,0.00026849,3]
[385742716,1757999455037,-328.0,0.00026849,3]
[385742717,1757999455046,-328.0,0.00026849,3]
[385742718,1757999455055,-328.0,0.00026849,3]
[385742719,1757999455065,-328.0,0.00026849,3]
[385742720,1757999455075,-328.0,0.00026849,3]
[385742721,1757999455084,-328.0,0.00026849,3]
[385742722,1757999455093,-328.0,0.00026849,3]
[385742723,1757999455103,-328.0,0.00026849,3]
[385742724,1757999455113,-328.0,0.00026849,3]
[385742725,1757999455122,-328.0,0.00026849,3]
[385742726,1757999455132,-328.0,0.00026849,3]
[385742727,1757999455141,-328.0,0.00026849,3]
[385742728,1757999455150,-328.0,0.00026849,3]
[385742729,1757999455159,-328.0,0.00026849,3]
[385742730,1757999455168,-338.91317901,0.00026849,3]
[385742731,1757999455178,-502.74,0.00026849,3]
[385742732,1757999455188,-487.15,0.00026849,3]
[385742733,1757999455197,-529.77,0.00026849,3]
[385742734,1757999455207,-3859.97,0.00026849,3]
[385742735,1757999455216,-1411.58,0.00026849,3]
[385742736,1757999455226,-396.00815652,0.00026849,3]
[385742737,1757999455236,-940.86,0.00026849,3]
[385742738,1757999455245,-837.88,0.00026849,3]
[385742739,1757999455254,-800.0,0.00026899,2]
[385742740,1757999455264,-209.0,0.0002694,2]
[385742741,1757999455274,-2000.0,0.00026947,2]
[385742742,1757999455284,-154.10279559,0.0002698,2]
[385742743,1757999455293,-467.00196153,0.00027,14]
[385742744,1757999455303,-1060.0,0.00027041,2]
[385742745,1757999455312,-600.0,0.00027106,20]
[385742746,1757999455321,-502.74,0.00027123,3]
[385742747,1757999455330,-487.15,0.00027123,3]
[385742748,1757999455340,-529.77,0.00027123,3]
[385742749,1757999455350,-3859.97,0.00027123,3]
[385742750,1757999455359,-1411.58,0.00027123,3]
[385742751,1757999455370,-940.86,0.00027123,3]
[385742752,1757999455380,-837.88,0.00027123,3]
[385742753,1757999455390,-152.770812,0.00027162,10]
[385742754,1757999455400,-2737.0,0.00027169,2]
[385742755,1757999455411,-152.770812,0.00027233,7]
[385742756,1757999455424,-152.770812,0.00027252,2]
[385742757,1757999455433,-151.0,0.00027286,6]
[385742758,1757999455442,-813.69,0.000273,7]
[385742759,1757999455452,-209.0,0.0002735,2]
[385742760,1757999455462,-502.74,0.00027397,3]
[385742761,1757999455471,-464.33081257,0.00027397,2]
[385742762,1757999455480,-487.15,0.00027397,3]
[385742763,1757999455551,-529.77,0.00027397,3]
[385742764,1757999455561,-3859.97,0.00027397,3]
[385742765,1757999455571,-1411.58,0.00027397,3]
[385742766,1757999455580,-940.86,0.00027397,3]
[385742767,1757999455589,-837.88,0.00027397,3]
[385742768,1757999455598,-1500.0,0.00027397,2]
[385742769,1757999455608,-920.47481441,0.00027423,2]
[385742770,1757999455619,-495.7,0.00027457,15]
[385742771,1757999455628,-495.7,0.00027557,15]
[385742772,1757999455637,-625.64212124,0.00027558,2]
[385742773,1757999455647,-1160.0,0.00027589,2]
[385742774,1757999455656,-495.7,0.00027657,15]
[385742775,1757999455666,-502.74,0.00027671,3]
[385742776,1757999455675,-487.15,0.00027671,3]
[385742777,1757999455685,-529.77,0.00027671,3]
[385742778,1757999455695,-3859.97,0.00027671,3]
[385742779,1757999455705,-1411.58,0.00027671,3]
[385742780,1757999455714,-940.86,0.00027671,3]
[385742781,1757999455723,-837.88,0.00027671,3]
[385742782,1757999455732,-1826.49,0.000277,7]
[385742783,1757999455742,-495.7,0.00027757,15]
[385742784,1757999455752,-151.0,0.00027757,15]
[385742785,1757999455761,-151.0,0.00027757,15]
[385742786,1757999455770,-151.0,0.00027757,15]
[385742787,1757999455779,-151.0,0.00027757,15]
[385742788,1757999455788,-500.0,0.00027757,15]
[385742789,1757999455797,-495.7,0.00027857,15]
[385742790,1757999455806,-151.0,0.00027869,6]
[385742791,1757999455816,-977.0,0.00027893,2]
[385742792,1757999455825,-2157.0,0.00027893,2]
[385742793,1757999455834,-634.0,0.00027893,2]
[385742794,1757999455843,-410.0,0.00027893,2]
[385742795,1757999455853,-410.0,0.00027893,2]
[385742796,1757999455861,-800.0,0.00027895,2]
[385742797,1757999455872,-502.74,0.00027945,3]
[385742798,1757999455882,-487.15,0.00027945,3]
[385742799,1757999455891,-529.77,0.00027945,3]
[385742800,1757999455901,-3859.97,0.00027945,3]
[385742801,1757999455910,-1411.58,0.00027945,3]
[385742802,1757999455919,-929.02949749,0.00027945,3]
[385742803,1757999456235,-11.83050251,0.00027945,3]
[385742804,1757999456244,-837.88,0.00027945,3]
[385742805,1757999456253,-495.7,0.00027957,15]
[385742806,1757999456262,-500.0,0.00027995,5]
[385742807,1757999456271,-9000.0,0.00028,2]
[385742808,1757999456280,-500.0,0.00028,10]
[385742809,1757999456290,-591.0,0.00028,2]
[385742810,1757999456299,-323.8785,0.00028,120]
[385742811,1757999456308,-323.8785,0.00028,120]
[385742812,1757999456317,-323.8785,0.00028,5]
[385742813,1757999456326,-159.61060249,0.00028031,15]
[385742814,1757999456335,-165.36353337,0.00028031,15]
[385742815,1757999456344,-164.66831296,0.00028031,15]
[385742816,1757999456353,-164.2224735,0.00028031,15]
[385742817,1757999456362,-548.19219168,0.00028031,15]
[385742818,1757999456371,-2000.0,0.00028043,7]
[385742819,1757999456380,-495.7,0.00028057,15]
[385742820,1757999456390,-1260.0,0.00028137,2]
[385742821,1757999456399,-495.7,0.00028157,15]
[385742822,1757999456408,-209.0,0.0002818,30]
[385742823,1757999456420,-502.77699179,0.00028219,3]
[385742824,1757999456429,-487.25904295,0.00028219,3]
[385742825,1757999456438,-529.92506117,0.00028219,3]
[385742826,1757999456448,-3860.14879647,0.00028219,3]
[385742827,1757999456458,-1411.71746772,0.00028219,3]
[385742828,1757999456468,-940.90000001,0.00028219,3]
[385742829,1757999456477,-837.92001024,0.00028219,3]
[385742830,1757999456487,-495.7,0.00028257,15]
[385742831,1757999456497,-1273.83,0.00028304,30]
[385742832,1757999456506,-495.7,0.00028357,15]
[385742833,1757999456515,-6667.26,0.000284,7]
[385742834,1757999456525,-151.0,0.00028452,6]
[385742835,1757999456534,-495.7,0.00028457,15]
[385742836,1757999456543,-188.053102,0.00028521,30]
[385742837,1757999456552,-188.632234,0.00028548,30]
[385742838,1757999456562,-608.002568,0.00028548,30]
[385742839,1757999456570,-591.642094,0.00028548,30]
[385742840,1757999456579,-188.632234,0.00028548,30]
[385742841,1757999456590,-188.632234,0.00028548,30]
[385742842,1757999456600,-188.632234,0.00028548,30]
[385742843,1757999456609,-495.7,0.00028557,15]
[385742844,1757999456619,-209.0,0.0002859,30]
[385742845,1757999456629,-495.7,0.00028657,15]
[385742846,1757999456639,-1073.15284553,0.00028685,2]
[385742847,1757999456648,-201.0,0.0002869,22]
[385742848,1757999456657,-495.7,0.00028757,15]
[385742849,1757999456666,-1218.96,0.00028767,6]
[385742850,1757999456676,-920.47481441,0.00028767,2]
[385742851,1757999456749,-813.69,0.000288,7]
[385742852,1757999456758,-495.7,0.00028857,15]
[385742853,1757999456767,-800.0,0.00028892,2]
[385742854,1757999456777,-495.7,0.00028957,15]
[385742855,1757999456786,-209.0,0.00029,30]
[385742856,1757999456795,-1826.49,0.00029,7]
[385742857,1757999456804,-160.0,0.00029,10]
[385742858,1757999456813,-160.0,0.00029,10]
[385742859,1757999456822,-531.43424302,0.00029,10]
[385742860,1757999456831,-151.0,0.00029035,7]
[385742861,1757999456840,-495.7,0.00029057,15]
[385742862,1757999456849,-1152.0,0.00029142,2]
[385742863,1757999456858,-495.7,0.00029157,15]
[385742864,1757999456867,-495.7,0.00029257,15]
[385742865,1757999456876,-182.63958463,0.0002931,120]
[385742866,1757999456885,-495.7,0.00029357,15]
[385742867,1757999456894,-500.0,0.00029395,5]
[385742868,1757999456903,-1197.5687299,0.00029397,30]
[385742869,1757999456912,-402.6664121,0.00029397,30]
[385742870,1757999456921,-209.0,0.0002941,30]
[385742871,1757999456931,-495.7,0.00029457,15]
[385742872,1757999456940,-495.7,0.00029557,15]
[385742873,1757999456949,-151.0,0.00029617,7]
[385742874,1757999456958,-15465.2244362,0.00029627,2]
[385742875,1757999456966,-495.7,0.00029657,15]
[385742876,1757999456976,-163.281658,0.00029679,3]
[385742877,1757999456984,-2000.0,0.00029687,7]
[385742878,1757999456993,-495.7,0.00029757,15]
[385742879,1757999457002,-720.0,0.00029817,20]
[385742880,1757999457012,-209.0,0.0002982,30]
[385742881,1757999457021,-495.7,0.00029857,15]
[385742882,1757999457030,-1062.72115605,0.00029888,2]
[385742883,1757999457039,-800.0,0.00029888,2]
[385742884,1757999457049,-14773.96331111,0.000299,4]
[385742885,1757999457059,-495.7,0.00029957,15]
[385742886,1757999457069,-160.0,0.0003,120]
[385742887,1757999457077,-313.0,0.0003,120]
[385742888,1757999457087,-155.639,0.0003,2]
[385742889,1757999457096,-4000.0,0.0003,4]
[385742890,1757999457105,-495.7,0.00030057,15]
[385742891,1757999457114,-134222.0715276,0.000301,30]
[385742892,1757999457124,-920.47481441,0.00030112,2]
[385742893,1757999457133,-151.67069348,0.00030151,2]
[385742894,1757999457142,-495.7,0.00030157,15]
[385742895,1757999457151,-409.0,0.00030172,50]
[385742896,1757999457161,-2000.0,0.000302,2]
[385742897,1757999457170,-151.0,0.000302,7]
[385742898,1757999457180,-161.0755599,0.000302,5]
[385742899,1757999457188,-109303.3340268,0.00030211,20]
[385742900,1757999458750,-0.0051389,0.00030211,20]
[385742905,1757999478062,20135.60379015,0.00028,30]
[385742906,1757999618268,182.0766478,0.00020167,2]
[385742907,1757999682484,5413.0427013,0.00020012,2]
[385742908,1757999704054,300.141785,0.00020409,2]
[385742909,1757999713814,-239.46123868,0.00020696,2]
[385742910,1757999716175,-165.9960227,0.00020696,2]
[385742911,1757999716466,239.46123868,0.000206,2]
[385742912,1757999718560,-455.48778367,0.00020696,2]
[385742913,1757999740374,621.48380637,0.000206,2]
[385742914,1757999743342,-161.13380853,0.00020696,2]
[385742915,1757999747446,-309.12184833,0.00020696,2]
[385742916,1757999748967,-252.78344526,0.00020696,2]
[385742917,1757999752650,-176.51599405,0.00020696,2]
[385742918,1757999754140,-191.12758996,0.00020696,2]
[385742920,1757999757824,-203.4359139,0.00020696,2]
[385742921,1757999761038,-191.12758996,0.00020696,2]
[385742922,1757999763357,1294.11860003,0.000206,2]
[385742923,1757999763545,-432.75542749,0.00020696,2]
[385742924,1757999786615,623.88301745,0.000206,2]
[385742925,1757999792537,-190.50204287,0.00020696,2]
[385742926,1757999795907,-376.13947647,0.00020696,2]
[385742927,1757999799370,-249.67507202,0.00020696,2]
[385742928,1757999801298,-170.82718854,0.00020696,2]
[385742929,1757999810300,987.1437799,0.000206,2]
[385742930,1757999824607,-154.2180119,0.00020696,2]
[385742931,1757999829522,-157.60099695,0.00020696,2]
[385742932,1757999831536,-317.46325072,0.00020696,2]
[385742933,1757999833351,281.34100002,0.00020079,2]
[385742934,1757999834055,311.81900885,0.000206,2]
[385742935,1757999857208,317.46325072,0.00020696,2]
[385742946,1758000002412,1200.0,0.00020695,2]
[385742947,1758000002595,300.0,0.00020695,2]
[385742948,1758000003382,300.0,0.00020695,2]
[385742949,1758000003442,180.120206,0.00019748,2]
[385742951,1758000035525,13354.7795786,0.00019906,2]
[385742953,1758000142552,700.0,0.00028,30]
[385742959,1758000348897,6739.0,0.00028,30]
[385742962,1758000418880,241.7517734,0.000206,2]
[385742963,1758000432145,-753.69811719,0.00020695,2]
[385742964,1758000446476,204.24428535,0.00020595,2]
[385742966,1758000506352,5122.22025342,0.000206,2]
[385742968,1758000516906,1993.84549728,0.00026,30]
[385742970,1758000523974,171.18194806,0.00020598,2]
[385742971,1758000620129,300.1417865,0.00019772,2]
[385742993,1758000637450,-1017.88493254,0.00020696,20]
[385742999,1758000638516,-686.01806746,0.00020696,20]
[385743000,1758000638526,-1200.0,0.00020697,2]
[385743001,1758000638535,-461.26183595,0.00020698,2]
[385743002,1758000638546,-645.73816405,0.00020698,2]
[385743003,1758000638556,-300.0,0.00020698,2]
[385743004,1758000638565,-300.0,0.00020698,2]
[385743005,1758000638575,-300.0,0.00020698,2]
[385743006,1758000638584,-4825.76316126,0.00020699,2]
[385743007,1758000638596,-7219.45220539,0.00020699,2]
[385743008,1758000638606,-500.0,0.00020699,2]
[385743009,1758000638615,-209.14550158,0.00020699,2]
[385743010,1758000638624,-366.16783121,0.00020699,2]
[385743011,1758000638634,-824.76148179,0.00020699,2]
[385743012,1758000638644,-824.76148179,0.00020699,2]
[385743013,1758000638654,-824.76148179,0.00020699,2]